lending/lending_fUSD_20240830
["ID","MTS","AMOUNT","RATE_DAILY","PERIOD"]
[336637088,1724989832703,-500.0,0.00010999,2]
[336637089,1724989832713,-500.0,0.00010999,2]
[336637090,1724989832722,-500.0,0.00010999,2]
[336637091,1724989832732,-500.0,0.00010999,2]
[336637092,1724989832742,-393.77421558,0.00010999,2]
[336637093,1724989832751,-500.0,0.00010999,2]
[336637094,1724989832761,-352.56445546,0.00010999,2]
[336637095,1724989832771,-500.0,0.00010999,2]
[336637096,1724989832781,-500.0,0.00010999,2]
[336637097,1724989832790,-500.0,0.00010999,2]
[336637098,1724989832800,-331.29783319,0.00010999,2]
[336637099,1724989832809,-931.61562161,0.00010999,2]
[336637100,1724989832819,-634.0,0.00011,2]
[336637101,1724989832828,-134400.63248394,0.00011,2]
[336637102,1724989832840,-9835.58180308,0.00011,2]
[336637103,1724989832851,-1230.01759857,0.00011,2]
[336637104,1724989832862,-2514.72665498,0.00011,2]
[336637105,1724989832873,-22916.49869489,0.00011,2]
[336637106,1724989832884,-402172.9300441,0.00011,2]
[336637107,1724989832895,-3586.11267,0.00011,2]
[336637108,1724989832907,-2722.12504729,0.00011,2]
[336637109,1724989832918,-2850.4465138,0.00011,2]
[336637110,1724989832929,-1679.06194262,0.00011,2]
[336637111,1724989832940,-929.99995,0.00011,2]
[336637112,1724989832951,-1415.43626018,0.00011,2]
[336637113,1724989832967,-1306.0,0.00011,2]
[336637127,1724989838758,-306.7231939,0.00011,2]
[336637129,1724989838770,-1605.98,0.00011,2]
[336637131,1724989838781,-1495.67112458,0.00011,2]
[336637134,1724989838793,-27654.0,0.00011,2]
[336637136,1724989838804,-2967.85956909,0.00011,2]
[336637138,1724989838815,-6157.08148719,0.00011,2]
[336637146,1724989838884,-2549.55900004,0.00011,2]
[336637148,1724989838897,-2722.8555149,0.00011,2]
[336637150,1724989838909,-712.43225591,0.00011,2]
[336637152,1724989838921,-686.50000001,0.00011,2]
[336637154,1724989838932,-4236.72490095,0.00011,2]
[336637292,1724989840431,-5719.53545259,0.00011,2]
[336637296,1724989840456,-374.07477111,0.00011,2]
[336637305,1724989840550,-462.7030002,0.00011,2]
[336637309,1724989840573,-4277.62399148,0.00011,2]
[336637312,1724989840596,-3649.56371134,0.00011,2]
[336637314,1724989840607,-978.78486326,0.00011,2]
[336637559,1724989843363,-1217.50675063,0.00011,2]
[336637562,1724989843375,-75118.61960021,0.00011,2]
[336637564,1724989843384,-617.0,0.00011,2]
[336637566,1724989843394,-1265371.72967778,0.00011,2]
[336637568,1724989843405,-1343526.26269595,0.00011,2]
[336637591,1724989845520,-508.350001,0.00011,2]
[336637592,1724989845531,-1433.76304378,0.00011,2]
[336637593,1724989845543,-597.98362185,0.00011,2]
[336637594,1724989845555,-2564.133,0.00011,2]
[336637598,1724989846276,-500.0,0.00011,2]
[336637599,1724989846288,-3979.28148486,0.00011,2]
[336637600,1724989846410,-695.19249147,0.00011,2]
[336637601,1724989846422,-433.9560001,0.00011,2]
[336637602,1724989846433,-937.15713114,0.00011,2]
[336637603,1724989846445,-278.37883001,0.00011,2]
[336637604,1724989850287,2749.6354,0.0001086,2]
[336637605,1724989853234,16364.3516,0.00010895,2]
[336637606,1724989863153,530.5332,0.0001086,2]
[336637607,1724989872628,212.5945,0.00010895,2]
[336637608,1724989873409,305.47677564,0.000109,2]
[336637609,1724989879374,206.17,0.0001071,2]
[336637610,1724989902933,250.0,0.00010199,2]
[336637611,1724989918971,38813.885,0.00010895,2]
[336637612,1724989949529,1235.5691,0.00010895,2]
[336637613,1724989953463,867.16,8.275e-05,2]
[336637614,1724989953700,867.16,0.00010539,2]
[336637615,1724989959598,7500.0,0.000109,2]
[336637616,1724989975173,49966.5844,0.00010895,2]
[336637617,1724989977844,409.92,0.00010183,2]
[336637618,1724989980135,345.36063455,0.000109,2]
[336637619,1724989981533,181.0582,0.00010895,2]
[336637620,1724990014611,500.0,0.00010912,2]
[336637621,1724990018438,200.0,0.00010959,2]
[336637622,1724990028173,250.0,0.00010959,2]
[336637623,1724990066146,16710.2738,0.000109,2]
[336637624,1724990071354,169.15,0.00010959,2]
[336637625,1724990140089,250.0,0.00010199,2]
[336637626,1724990145170,5553.93743761,0.000109,2]
[336637629,1724990153745,1479.55689574,0.000109,2]
[336637640,1724990175744,693.1867,0.000109,2]
[336637642,1724990207332,18481.4273,0.000109,2]
[336637643,1724990208588,1635.7915,0.000109,2]
[336637644,1724990230544,5916.09,0.00010192,2]
[336637645,1724990263716,171.55,0.00010192,2]
[336637646,1724990280485,3702.6249584,0.000109,2]
[336637647,1724990293477,319.02,0.00010199,2]
[336637648,1724990346894,1005.28,0.00010192,2]
[336637649,1724990347113,1005.28,0.00010195,2]
[336637650,1724990347321,1005.28,0.00010198,2]
[336637651,1724990347558,1005.28,0.000102,2]
[336637652,1724990347799,1005.28,0.00010203,2]
[336637653,1724990347998,1005.28,0.00010206,2]
[336637654,1724990348228,1005.28,0.00010208,2]
[336637655,1724990348435,1005.28,0.00010211,2]
[336637656,1724990348643,1005.28,0.00010214,2]
[336637657,1724990348870,1005.28,0.00010216,2]
[336637658,1724990349095,1005.28,0.00010219,2]
[336637659,1724990349302,1005.28,0.00010222,2]
[336637660,1724990349536,1005.28,0.00010224,2]
[336637661,1724990349751,1005.28,0.00010227,2]
[336637662,1724990350192,1005.28,0.0001023,2]
[336637663,1724990350414,1005.28,0.00010232,2]
[336637664,1724990350626,1005.28,0.00010235,2]
[336637665,1724990350831,1005.28,0.00010238,2]
[336637666,1724990351855,1005.28,0.0001024,2]
[336637667,1724990351890,1005.28,0.00010243,2]
[336637668,1724990359518,360.0,0.00010183,2]
[336637670,1724990398517,4176.4939,0.000109,2]
[336637671,1724990415670,2468.41663894,0.000109,2]
[336637672,1724990422600,250.0,0.00010192,2]
[336637673,1724990480438,842.94,8.281e-05,2]
[336637674,1724990480642,842.94,0.00010545,2]
[336637675,1724990551757,1645.61109262,0.000109,2]
[336637676,1724990557464,250.0,0.00010959,2]
[336637689,1724990584250,159.37388818,0.00010895,2]
[336637690,1724990588723,159.37388818,0.000109,2]
[336637692,1724990594031,1331.60120613,0.000109,2]
[336637693,1724990615831,250.0,0.00010208,2]
[336637695,1724990621695,1000.0,0.0001019,2]
[336637696,1724990642052,154.97,0.00010959,2]
[336637698,1724990686929,1097.07406176,0.000109,2]
[336637700,1724990806395,1539.78,0.0001021,2]
[336637701,1724990813672,159.51,0.00010205,2]
[336637702,1724990822726,731.38270784,0.000109,2]
[336637737,1724990898827,721.04,0.000108,2]
[336637738,1724990908501,250.0,0.00010193,2]
[336637739,1724990915085,1108.301799,0.00010939,2]
[336637740,1724990929257,186.66,0.00010193,2]
[336637742,1724990957922,487.58847188,0.000109,2]
[336637744,1724990989623,1959.0,0.000109,2]
[336637747,1724991031460,-150.0,0.00010994,2]
[336637748,1724991031470,-300.0,0.00010994,2]
[336637749,1724991031479,-674.8035922,0.00010995,2]
[336637750,1724991031489,-2111.13251805,0.00010995,2]
[336637751,1724991031617,-1296.1257819,0.00010995,2]
[336637752,1724991031630,-460.59415606,0.00010995,2]
[336637753,1724991031671,-73.44863369,0.00010995,2]
[336637754,1724991031680,-1463.2443392,0.00010995,2]
[336637761,1724991033664,171.02524515,0.000109,2]
[336637762,1724991035699,1198.44108558,0.000109,2]
[336637763,1724991037406,-679.27995712,0.00010995,2]
[336637764,1724991037418,-1692.85057735,0.00010995,2]
[336637765,1724991037462,-673.06833374,0.00010995,2]
[336637766,1724991037474,-868.24798289,0.00010995,2]
[336637767,1724991037483,-463.81048333,0.00010999,2]
[336637768,1724991037622,-536.18951667,0.00010999,2]
[336637769,1724991037632,-500.0,0.00010999,2]
[336637770,1724991037643,-569.78661177,0.00010999,2]
[336637771,1724991037654,-615.0,0.00011,2]
[336637772,1724991037664,-3742.32387156,0.00011,2]
[336637773,1724991037675,-6604.39732132,0.00011,2]
[336637774,1724991037687,-427.20419193,0.00011,2]
[336637775,1724991037698,-623.44199861,0.00011,2]
[336637974,1724991039468,-939.14177014,0.00011,2]
[336637976,1724991039480,-1531.85830089,0.00011,2]
[336637978,1724991039491,-1180.22303273,0.00011,2]
[336637980,1724991039502,-971.76362588,0.00011,2]
[336637982,1724991039513,-1594.44684523,0.00011,2]
[336637983,1724991039524,-564.41353851,0.00011,2]
[336637985,1724991039534,-757.16043135,0.00011,2]
[336637988,1724991039546,-3391.85838958,0.00011,2]
[336637990,1724991039557,-4767.903866,0.00011,2]
[336637992,1724991039571,-38845.77453441,0.00011,2]
[336638003,1724991039687,-6334.48037121,0.00011,2]
[336638008,1724991039740,-1370.7037282,0.00011,2]
[336638247,1724991042464,-1919.52883686,0.00011,2]
[336638248,1724991042476,-3664.0000002,0.00011,2]
[336638249,1724991042519,-6246.50973598,0.00011,2]
[336638250,1724991042531,-940.096497,0.00011,2]
[336638251,1724991042541,-463.29586362,0.00011,2]
[336638252,1724991042577,-175246.94026086,0.00011,2]
[336638253,1724991042590,-435746.54064395,0.00011,2]
[336638254,1724991042602,-1228.76131435,0.00011,2]
[336638255,1724991042613,-14318.18305491,0.00011,2]
[336638260,1724991045033,-275.18000013,0.00011,2]
[336638261,1724991045044,-7411.98656928,0.00011,2]
[336638262,1724991045055,-426.5388879,0.00011,2]
[336638263,1724991045067,-337.7079,0.00011,2]
[336638265,1724991045469,-5886.8478948,0.00011,2]
[336638266,1724991045481,-3854.16700004,0.00011,2]
[336638267,1724991045523,-20944.7951398,0.00011,2]
[336638268,1724991045534,-2777.09675938,0.00011,2]
[336638269,1724991045583,-313.06330969,0.00011,2]
[336638270,1724991060451,7500.0,0.000109,2]
[336638271,1724991072442,2001.33418951,0.000109,2]
[336638272,1724991076981,198819.0866,0.000109,2]
[336638273,1724991093180,325.05898126,0.000109,2]
[336638274,1724991102929,59280.4232,0.000109,2]
[336638294,1724991113612,426.8893,0.000109,2]
[336638316,1724991130526,183.73,0.00010959,2]
[336638322,1724991144669,250.0,0.00010959,2]
[336638323,1724991145186,200.0,0.00010188,2]
[336638331,1724991191238,250.0,0.00010215,2]
[336638333,1724991201301,13724.8151,0.000109,2]
[336638334,1724991222212,500.0,0.00010912,2]
[336638335,1724991225391,150.0,0.00010959,2]
[336638336,1724991225413,50.0,0.00010959,2]
[336638337,1724991230734,100.0,0.000109,2]
[336638338,1724991230757,116.7059875,0.000109,2]
[336638339,1724991253652,148.9165125,8.219e-05,2]
[336638340,1724991253674,150.0,8.219e-05,2]
[336638341,1724991253696,150.0,8.219e-05,2]
[336638342,1724991253717,296.44517674,8.219e-05,2]
[336638343,1724991253740,43.72831076,8.219e-05,2]
[336638344,1724991253859,789.09,0.00010482,2]
[336638345,1724991282630,565.6225,0.000109,2]
[336638346,1724991285946,541.05886675,0.00010894,2]
[336638347,1724991294872,517.6276,0.000109,2]
[336638348,1724991318113,531.1569,0.000109,2]
[336638349,1724991378360,150.0,0.00010229,2]
[336638350,1724991378381,89.26,0.00010229,2]
[336638351,1724991387426,60.74,0.00010227,2]
[336638352,1724991387447,150.0,0.00010227,2]
[336638353,1724991387467,39.26,0.00010227,2]
[336638354,1724991408584,150.0,0.0001089,2]
[336638355,1724991408605,150.0,0.0001089,2]
[336638356,1724991408627,150.0,0.0001089,2]
[336638357,1724991408649,66.18122,0.0001089,2]
[336638358,1724991438256,150.0,0.0001022,2]
[336638359,1724991438278,13.36,0.0001022,2]
[336638360,1724991438485,136.64,0.00010271,2]
[336638361,1724991438506,26.72,0.00010271,2]
[336638363,1724991461091,150.0,0.000109,2]
[336638364,1724991461112,7.5408,0.000109,2]
[336638366,1724991483038,150.0,0.000109,2]
[336638367,1724991483065,981.03517266,0.000109,2]
[336638368,1724991497542,150.0,0.000109,2]
[336638369,1724991497563,150.0,0.000109,2]
[336638370,1724991497584,133.2501,0.000109,2]
[336638371,1724991498275,156.67408994,0.00010205,2]
[336638372,1724991498296,30.00591006,0.00010205,2]
[336638373,1724991521984,150.0,0.000109,2]
[336638374,1724991522008,150.0,0.000109,2]
[336638375,1724991522029,150.0,0.000109,2]
[336638376,1724991522050,50.0,0.000109,2]
[336638377,1724991525661,150.0,0.00010205,2]
[336638378,1724991525683,150.0,0.00010205,2]
[336638379,1724991525705,150.0,0.00010205,2]
[336638380,1724991525729,150.0,0.00010205,2]
[336638381,1724991525749,150.0,0.00010205,2]
[336638383,1724991614944,236.74398994,0.000109,2]
[336638384,1724991614967,2232.24371006,0.000109,2]
[336638385,1724991635315,150.0,0.00010959,2]
[336638386,1724991635338,15.93,0.00010959,2]
[336638389,1724991656126,150.0,0.00010185,2]
[336638390,1724991656148,150.0,0.00010185,2]
[336638391,1724991656169,150.0,0.00010185,2]
[336638392,1724991656192,150.0,0.00010185,2]
[336638393,1724991656215,150.0,0.00010185,2]
[336638394,1724991656237,90.0,0.00010185,2]
[336638395,1724991670713,150.0,0.000109,2]
[336638396,1724991670733,150.0,0.000109,2]
[336638397,1724991670754,150.0,0.000109,2]
[336638398,1724991670778,150.0,0.000109,2]
[336638399,1724991670798,150.0,0.000109,2]
[336638400,1724991670820,150.0,0.000109,2]
[336638401,1724991670843,150.0,0.000109,2]
[336638402,1724991670863,150.0,0.000109,2]
[336638403,1724991670884,150.0,0.000109,2]
[336638404,1724991670904,150.0,0.000109,2]
[336638405,1724991670924,150.0,0.000109,2]
[336638406,1724991670944,150.0,0.000109,2]
[336638407,1724991670967,150.0,0.000109,2]
[336638408,1724991670988,150.0,0.000109,2]
[336638409,1724991671008,150.0,0.000109,2]
[336638410,1724991671028,150.0,0.000109,2]
[336638411,1724991671049,150.0,0.000109,2]
[336638412,1724991671070,150.0,0.000109,2]
[336638413,1724991671090,150.0,0.000109,2]
[336638414,1724991671109,150.0,0.000109,2]
[336638415,1724991671140,150.0,0.000109,2]
[336638416,1724991671185,150.0,0.000109,2]
[336638417,1724991671230,150.0,0.000109,2]
[336638418,1724991671277,150.0,0.000109,2]
[336638419,1724991671315,150.0,0.000109,2]
[336638420,1724991671339,51156.0,0.000109,2]
[336638421,1724991674724,194.07,0.00010894,2]
[336638422,1724991674743,113.4027,0.00010894,2]
[336638423,1724991687074,186.5973,0.00010959,2]
[336638424,1724991687098,63.4027,0.00010959,2]
[336638425,1724991733779,150.0,0.000109,3]
[336638426,1724991733800,150.0,0.000109,3]
[336638427,1724991733822,150.0,0.000109,3]
[336638428,1724991733843,150.0,0.000109,3]
[336638429,1724991733866,150.0,0.000109,3]
[336638430,1724991733889,150.0,0.000109,3]
[336638431,1724991733913,6862.55502264,0.000109,3]
[336638432,1724991733941,3741.44497736,0.000109,3]
[336638433,1724991747156,772.59,8.272e-05,2]
[336638434,1724991747557,772.59,0.00010536,2]
[336638435,1724991767003,2700.0,0.000109,2]
[336638440,1724991795850,11504.0,0.000109,5]
[336638448,1724991819046,250.0,0.0001019,2]
[336638449,1724991841239,72412.5939547,0.00010994,30]
[336638450,1724991862075,239.26,0.00010182,2]
[336638452,1724991912865,250.0,0.0001018,2]
[336638453,1724991920713,433.411975,0.000109,2]
[336638454,1724991929150,6142.06105204,0.000101,2]
[336638455,1724991934476,10179.31655331,0.000109,2]
[336638456,1724991966318,171.55,0.0001018,2]
[336638457,1724991976070,359.0,0.00010432,2]
[336638458,1724991976292,359.0,0.00010435,2]
[336638459,1724991976495,359.0,0.00010438,2]
[336638460,1724991977029,359.0,0.00010441,2]
[336638461,1724991977059,359.0,0.00010443,2]
[336638462,1724991977118,359.0,0.00010446,2]
[336638463,1724991977339,359.0,0.00010449,2]
[336638464,1724991977544,359.0,0.00010451,2]
[336638465,1724991978198,359.0,0.00010454,2]
[336638466,1724991978232,359.0,0.00010457,2]
[336638467,1724991978263,359.0,0.0001046,2]
[336638468,1724991978378,359.0,0.00010462,2]
[336638469,1724991978619,359.0,0.00010465,2]
[336638470,1724991978847,359.0,0.00010468,2]
[336638471,1724991979045,359.0,0.00010471,2]
[336638472,1724991979248,359.0,0.00010473,2]
[336638473,1724991979461,359.0,0.00010476,2]
[336638474,1724991979667,359.0,0.00010479,2]
[336638475,1724991979896,359.0,0.00010482,2]
[336638476,1724991980132,359.0,0.00010484,2]
[336638477,1724991994271,306.91424556,0.000109,2]
[336638478,1724992036947,4050.0,0.00010572,2]
[336638479,1724992066413,325.33,0.00010603,2]
[336638480,1724992080451,5422.84969544,0.0001,2]
[336638482,1724992115289,179.85,0.00010959,2]
[336638484,1724992120202,332.29417346,0.0002,60]
[336638485,1724992180193,2500.0,0.000109,2]
[336638486,1724992180513,2500.0,0.000109,2]
[336638492,1724992203787,250.0,0.00010959,2]
[336638493,1724992210081,328.0,0.00010741,2]
[336638501,1724992231582,-266.49,0.00010986,14]
[336638502,1724992231592,-150.0,0.00010994,2]
[336638504,1724992231601,-3534.8254009,0.00010995,2]
[336638506,1724992231611,-27902.1997362,0.00010995,2]
[336638507,1724992231620,-673.453985,0.00010995,2]
[336638508,1724992231630,-578.10663931,0.00010999,2]
[336638509,1724992231640,-1000.0,0.00010999,2]
[336638510,1724992231651,-500.0,0.00010999,2]
[336638511,1724992231660,-471.58178596,0.00010999,2]
[336638512,1724992231670,-324.12840728,0.00010999,2]
[336638513,1724992231679,-551.0,0.00011,2]
[336638514,1724992231690,-248200.63427046,0.00011,2]
[336638515,1724992231703,-493.5770007,0.00011,2]
[336638516,1724992231715,-264.82796935,0.00011,2]
[336638517,1724992231727,-2970.4813346,0.00011,2]
[336638518,1724992231739,-15432.30506371,0.00011,2]
[336638519,1724992231750,-12552.98142732,0.00011,2]
[336638520,1724992231761,-909.3594811,0.00011,2]
[336638521,1724992231771,-15739.85359747,0.00011,2]
[336638522,1724992231783,-3869.0471706,0.00011,2]
[336638523,1724992231795,-349.70936002,0.00011,2]
[336638524,1724992231807,-592.78,0.00011,2]
[336638525,1724992231818,-577.08950482,0.00011,2]
[336638526,1724992231831,-1670.90790627,0.00011,2]
[336638527,1724992231844,-1757.76879465,0.00011,2]
[336638528,1724992231862,-3826.9705267,0.00011,2]
[336638531,1724992237662,-306.51582714,0.00010997,2]
[336638532,1724992237672,-193.48417286,0.00011,2]
[336638533,1724992237684,-311.51582714,0.00011,2]
[336638534,1724992237694,-354.88417286,0.00011,2]
[336638562,1724992238394,-651.50000001,0.00011,2]
[336638564,1724992238406,-1733.45721338,0.00011,2]
[336638566,1724992238417,-4359.03,0.00011,2]
[336638567,1724992238429,-542.99403541,0.00011,2]
[336638568,1724992238441,-300.001004,0.00011,2]
[336638569,1724992238452,-719.45,0.00011,2]
[336638570,1724992238470,-443.13092382,0.00011,2]
[336638571,1724992238481,-1100.67125844,0.00011,2]
[336638572,1724992238495,-288.21511636,0.00011,2]
[336638573,1724992238507,-284.16954793,0.00011,2]
[336638574,1724992238523,-784.64182838,0.00011,2]
[336638575,1724992238539,-326.45,0.00011,2]
[336638576,1724992238550,-53227.96323755,0.00011,2]
[336638577,1724992238562,-426748.37503341,0.00011,2]
[336638578,1724992238571,-1473803.01796914,0.00011,2]
[336638579,1724992238581,-3300.0,0.00011,4]
[336638580,1724992238591,-3300.0,0.00011,4]
[336638581,1724992238600,-250.0,0.00011,2]
[336638582,1724992238611,-355.0,0.00011,2]
[336638583,1724992238621,-4631302.8088934,0.00011,2]
[336638584,1724992238631,-1000.0,0.00011,2]
[336638585,1724992238641,-1000.0,0.00011,2]
[336638586,1724992238651,-1000.0,0.00011,2]
[336638587,1724992238660,-1000.0,0.00011,2]
[336638588,1724992238669,-1000.0,0.00011,2]
[336638589,1724992238679,-339.88062676,0.00011,2]
[336638590,1724992238689,-553904.30678337,0.00011,2]
[336638591,1724992238701,-24941.78929803,0.00011,2]
[336638592,1724992238726,-655.6964493,0.00011,2]
[336638593,1724992238737,-2510.72,0.00011,2]
[336638594,1724992238749,-887.5,0.00011,2]
[336638595,1724992238761,-717.96206054,0.00011,2]
[336638608,1724992239741,-1729.84999999,0.00011,2]
[336638609,1724992239753,-376.955934,0.00011,2]
[336638610,1724992239799,-11384.66755912,0.00011,2]
[336638611,1724992239856,-6102.1638032,0.00011,2]
[336638612,1724992239912,-2926.4020911,0.00011,2]
[336638613,1724992239970,-1645.62767586,0.00011,2]
[336638614,1724992239982,-578.60900341,0.00011,2]
[336638615,1724992240029,-4608.07243216,0.00011,2]
[336638616,1724992240041,-7701.58319048,0.00011,2]
[336638617,1724992240052,-280.15208174,0.00011,2]
[336638618,1724992240064,-1124.02077438,0.00011,2]
[336638619,1724992240085,-1194.05,0.00011,2]
[336638620,1724992240097,-644.08472678,0.00011,2]
[336638621,1724992240144,-111742.50435818,0.00011,2]
[336638629,1724992243048,-1570.55517767,0.00011,2]
[336638631,1724992243063,-715.36994382,0.00011,2]
[336638633,1724992243074,-4783.44655774,0.00011,2]
[336638634,1724992243085,-1599.08934919,0.00011,2]
[336638635,1724992243096,-873.04153788,0.00011,2]
[336638636,1724992243107,-985.07438389,0.00011,2]
[336638637,1724992243118,-455.37695136,0.00011,2]
[336638639,1724992243128,-471.58178596,0.00011,2]
[336638640,1724992243140,-653.44587086,0.00011,2]
[336638641,1724992243151,-427.18428536,0.00011,2]
[336638642,1724992243161,-537.88,0.00011,2]
[336638643,1724992243172,-768.44720034,0.00011,2]
[336638644,1724992243183,-15164.0268957,0.00011,2]
[336638645,1724992243198,-1003340.38455846,0.00011,2]
[336638646,1724992243210,-3629.94639172,0.00011,2]
[336638647,1724992243222,-931.13278959,0.00011,2]
[336638648,1724992243233,-2314.6602881,0.00011,2]
[336638649,1724992243246,-748.63230573,0.00011,2]
[336638650,1724992243260,-831.48450349,0.00011,2]
[336638651,1724992244983,-324.3939293,0.00011,2]
[336638652,1724992245000,-1255.06367634,0.00011,2]
[336638653,1724992245011,-24856.3089465,0.00011,2]
[336638654,1724992245022,-286.93626806,0.00011,2]
[336638655,1724992245033,-3700.884,0.00011,2]
[336638657,1724992245593,-609.53823585,0.00011,2]
[336638658,1724992245604,-8924.9356803,0.00011,2]
[336638659,1724992245615,-2439.94300744,0.00011,2]
[336638660,1724992245652,-2438.53564919,0.00011,2]
[336638661,1724992245666,-1000.54103258,0.00011,2]
[336638662,1724992245677,-11753.76194839,0.00011,2]
[336638663,1724992245687,-29900.94388131,0.00011,2]
[336638664,1724992245699,-553.56974129,0.00011,2]
[336638665,1724992245714,-458.27649239,0.00011,2]
[336638666,1724992245725,-7533.79919372,0.00011,2]
[336638667,1724992245736,-506.28464956,0.00011,2]
[336638668,1724992245746,-1740.74654837,0.00011,2]
[336638669,1724992245776,-3666.82998998,0.00011,2]
[336638670,1724992245787,-22015.21942346,0.00011,2]
[336638671,1724992245797,-4374.92462227,0.00011,2]
[336638672,1724992245835,-12135.87654505,0.00011,2]
[336638673,1724992245847,-1580.85761632,0.00011,2]
[336638674,1724992245861,-1421.4756318,0.00011,2]
[336638675,1724992245894,-474.70594152,0.00011,2]
[336638676,1724992245907,-5143.26,0.00011,2]
[336638677,1724992245919,-311.7537489,0.00011,2]
[336638678,1724992245952,-2227.32105604,0.00011,2]
[336638680,1724992245965,-430.18684934,0.00011,2]
[336638683,1724992245976,-1295.87497203,0.00011,2]
[336639277,1724992267672,87959.3197,0.000109,2]
[336639278,1724992274653,180.19,8.471e-05,2]
[336639279,1724992278348,171.17415424,0.000109,2]
[336639280,1724992279750,162.43287432,0.000109,2]
[336639281,1724992282249,932.3442,0.00010894,2]
[336639282,1724992285739,726.01,8.632e-05,2]
[336639283,1724992285801,726.01,0.00010896,2]
[336639284,1724992286079,169.14363358,0.000109,2]
[336639285,1724992294776,1000.0,0.000109,2]
[336639286,1724992306628,2500.0,0.000109,2]
[336639287,1724992319538,8744.881,0.000109,2]
[336639288,1724992361186,500.0,0.000109,2]
[336639289,1724992381390,3697.37038406,0.000109,2]
[336639290,1724992383130,362.64985669,0.0001089,2]
[336639291,1724992397427,250.0,0.0001047,2]
[336639292,1724992399666,174.50762331,0.0001089,2]
[336639293,1724992402317,500.0,0.00010912,2]
[336639294,1724992405812,200.0,0.00010959,2]
[336639295,1724992426020,993.4403,0.000109,2]
[336639296,1724992437602,633.8743,0.000109,2]
[336639297,1724992449735,250.0,0.00010455,2]
[336639298,1724992485275,756.3379,0.000109,2]
[336639299,1724992517366,2464.91358938,0.000109,2]
[336639300,1724992526130,430.15102,0.0001089,2]
[336639301,1724992537015,169.14363358,0.000109,2]
[336639304,1724992571507,174.67,0.00010433,2]
[336639306,1724992587831,162.24,0.00010959,2]
[336639310,1724992602757,671.994,0.000109,2]
[336639312,1724992655625,1643.27572626,0.000109,2]
[336639313,1724992665034,162.43287432,0.000109,2]
[336639314,1724992673180,496.2913,0.000109,2]
[336639315,1724992681814,1282.3581,0.000109,2]
[336639316,1724992684047,250.0,0.00010959,2]
[336639318,1724992710565,737.6,0.00010419,2]
[336639319,1724992765436,712.87,8.486e-05,2]
[336639320,1724992765671,712.87,0.0001075,2]
[336639321,1724992773624,169.14363358,0.000109,2]
[336639322,1724992792114,1095.51715084,0.000109,2]
[336639323,1724992801228,160.0,8.334e-05,2]
[336639324,1724992809252,200.0,0.00010412,2]
[336639325,1724992830000,1365.8326,0.000109,2]
[336639326,1724992831480,162.25936,0.0001089,2]
[336639327,1724992897397,250.0,0.00010531,2]